fUST/lending_fUST_20250221
["ID","MTS","AMOUNT","RATE_DAILY","PERIOD"]
[353833078,1740083461984,-998.57,0.00014602,2]
[353833079,1740083461994,-1492.11,0.00014602,2]
[353833080,1740083462004,-2086.24,0.00014602,2]
[353833081,1740083462014,-500.0,0.00014602,2]
[353833082,1740083462023,-1276.48,0.00014602,2]
[353833083,1740083462033,-500.0,0.00014602,2]
[353833084,1740083462047,-500.0,0.00014602,2]
[353833085,1740083462057,-500.0,0.00014602,2]
[353833086,1740083462068,-500.0,0.00014602,2]
[353833087,1740083462079,-1532.03,0.00014602,2]
[353833088,1740083462089,-500.0,0.00014602,2]
[353833089,1740083462099,-523.05,0.00014602,2]
[353833090,1740083462109,-500.0,0.00014602,2]
[353833091,1740083462119,-500.0,0.00014602,2]
[353833092,1740083462130,-215.34,0.00014602,2]
[353833093,1740083462140,-548.69,0.00014602,2]
[353833094,1740083462150,-730.64,0.00014602,2]
[353833095,1740083462160,-5562.85,0.00014602,2]
[353833096,1740083462170,-1266.77,0.00014602,2]
[353833097,1740083462181,-1810.56,0.00014602,2]
[353833098,1740083462190,-500.0,0.00014602,2]
[353833099,1740083462200,-6428.59,0.00014602,2]
[353833100,1740083462209,-599.39,0.00014602,2]
[353833101,1740083462219,-13589.0,0.00014602,2]
[353833102,1740083462229,-1627.47,0.00014602,2]
[353833103,1740083462240,-10014.20700512,0.00014628,2]
[353833104,1740083462250,-157.5927324,0.00014632,2]
[353833105,1740083462260,-309.0,0.0001467,2]
[353833106,1740083462271,-500.0,0.00014684,2]
[353833107,1740083462280,-500.0,0.00014684,2]
[353833108,1740083462291,-500.0,0.00014684,2]
[353833109,1740083462300,-500.0,0.00014684,2]
[353833110,1740083462310,-167.47,0.00014684,2]
[353833111,1740083462319,-1344.33,0.00014684,2]
[353833112,1740083462329,-690.08,0.00014684,2]
[353833113,1740083462339,-500.0,0.00014684,2]
[353833114,1740083462350,-841.22,0.00014684,2]
[353833115,1740083462361,-626.22,0.00014684,2]
[353833116,1740083462371,-500.0,0.00014684,2]
[353833117,1740083462381,-567.91,0.00014684,2]
[353833118,1740083462391,-500.0,0.00014684,2]
[353833119,1740083462401,-510.4,0.00014684,2]
[353833120,1740083462412,-969.2,0.00014684,2]
[353833121,1740083462422,-622.21,0.00014684,2]
[353833122,1740083462433,-541.46,0.00014684,2]
[353833123,1740083462443,-624.73,0.00014684,2]
[353833124,1740083462453,-681.71,0.00014684,2]
[353833125,1740083462463,-1160.78,0.00014684,2]
[353833126,1740083462474,-500.0,0.00014684,2]
[353833127,1740083462484,-565.57,0.00014684,2]
[353833128,1740083462493,-500.0,0.00014684,2]
[353833129,1740083462504,-245.7,0.00014684,2]
[353833130,1740083462514,-500.0,0.00014684,2]
[353833131,1740083462524,-508.08,0.00014684,2]
[353833132,1740083462534,-973.34,0.00014684,2]
[353833133,1740083462543,-500.0,0.00014684,2]
[353833134,1740083462553,-500.0,0.00014684,2]
[353833135,1740083462563,-500.0,0.00014684,2]
[353833136,1740083462576,-735.52,0.00014684,2]
[353833137,1740083462586,-500.0,0.00014684,2]
[353833138,1740083462597,-578.73,0.00014684,2]
[353833139,1740083462607,-631.42,0.00014684,2]
[353833140,1740083462618,-500.0,0.00014684,2]
[353833141,1740083462629,-500.0,0.00014684,2]
[353833142,1740083462639,-630.95,0.00014684,2]
[353833143,1740083462649,-500.0,0.00014684,2]
[353833144,1740083462658,-500.0,0.00014684,2]
[353833145,1740083462668,-534.77,0.00014684,2]
[353833146,1740083462677,-500.0,0.00014684,2]
[353833147,1740083462686,-500.0,0.00014684,2]
[353833148,1740083462696,-662.16,0.00014684,2]
[353833149,1740083462706,-3140.73,0.00014684,2]
[353833150,1740083462715,-615.68,0.00014684,2]
[353833151,1740083462724,-547.69,0.00014684,2]
[353833152,1740083462733,-500.0,0.00014684,2]
[353833153,1740083462743,-1777.49,0.00014684,2]
[353833154,1740083462752,-500.0,0.00014684,2]
[353833155,1740083462762,-500.0,0.00014684,2]
[353833156,1740083462772,-500.0,0.00014684,2]
[353833157,1740083462782,-1398.84,0.00014684,2]
[353833158,1740083462792,-730.21,0.00014684,2]
[353833159,1740083462802,-796.15,0.00014684,2]
[353833160,1740083462811,-908.79,0.00014684,2]
[353833161,1740083462823,-549.32,0.00014684,2]
[353833162,1740083462833,-364.72163469,0.00014684,2]
[353833163,1740083463399,-500.0,0.00013698,2]
[353833164,1740083463410,-500.0,0.0001378,2]
[353833165,1740083463420,-500.0,0.00013863,2]
[353833166,1740083463430,-500.0,0.00013945,2]
[353833167,1740083463441,-14547.65836531,0.00014684,2]
[353833168,1740083463452,-2801.65,0.00014684,2]
[353833169,1740083463462,-500.0,0.00014684,2]
[353833170,1740083463472,-1082.16,0.00014684,2]
[353833171,1740083463483,-42237.27,0.00014684,2]
[353833172,1740083463494,-1101.55,0.00014684,2]
[353833173,1740083463504,-1138.49,0.00014684,2]
[353833174,1740083463515,-2990.03,0.00014684,2]
[353833175,1740083463526,-2277.37,0.00014684,2]
[353833176,1740083463538,-500.0,0.00014684,2]
[353833177,1740083463548,-6484.48,0.00014684,2]
[353833178,1740083463558,-511.2091456,0.00014684,2]
[353833179,1740083463569,-1166.9,0.00014684,2]
[353833180,1740083463580,-500.0,0.00014684,2]
[353833181,1740083463589,-722.07,0.00014684,2]
[353833182,1740083463599,-514.06,0.00014684,2]
[353833183,1740083463608,-3817.32,0.00014684,2]
[353833184,1740083463618,-2046.35,0.00014684,2]
[353833185,1740083463629,-3368.27,0.00014684,2]
[353833186,1740083463639,-500.0,0.00014684,2]
[353833187,1740083463649,-560.15,0.00014684,2]
[353833188,1740083463659,-998.57,0.00014684,2]
[353833189,1740083463669,-1492.11,0.00014684,2]
[353833190,1740083463679,-2086.24,0.00014684,2]
[353833191,1740083463689,-500.0,0.00014684,2]
[353833192,1740083463699,-1276.48,0.00014684,2]
[353833193,1740083463709,-500.0,0.00014684,2]
[353833194,1740083463719,-233.214784,0.00014684,2]
[353833195,1740083463729,-500.0,0.00014684,2]
[353833196,1740083463739,-500.0,0.00014684,2]
[353833197,1740083463749,-1532.03,0.00014684,2]
[353833198,1740083463759,-500.0,0.00014684,2]
[353833199,1740083463771,-523.05,0.00014684,2]
[353833200,1740083463781,-500.0,0.00014684,2]
[353833201,1740083463791,-360.23591674,0.00014684,2]
[353833202,1740083463802,-151.0,0.00014684,2]
[353833203,1740083463812,-548.69,0.00014684,2]
[353833204,1740083463823,-730.64,0.00014684,2]
[353833205,1740083463832,-5562.85,0.00014684,2]
[353833206,1740083463843,-1266.77,0.00014684,2]
[353833207,1740083463853,-1810.56,0.00014684,2]
[353833208,1740083463863,-321.98,0.00014684,2]
[353833209,1740083463874,-6428.59,0.00014684,2]
[353833210,1740083463885,-599.39,0.00014684,2]
[353833211,1740083463894,-13589.0,0.00014684,2]
[353833212,1740083463904,-1627.47,0.00014684,2]
[353833213,1740083463914,-500.0,0.00014712,2]
[353833214,1740083463924,-150.2,0.00014712,2]
[353833215,1740083463934,-150.2,0.00014712,2]
[353833216,1740083463944,-699.0,0.00014712,2]
[353833217,1740083463955,-500.0,0.00014712,2]
[353833218,1740083463965,-150.2,0.00014712,2]
[353833219,1740083463976,-500.0,0.00014712,2]
[353833220,1740083463986,-199.82354316,0.00014712,2]
[353833221,1740083463996,-500.0,0.00014712,2]
[353833222,1740083464006,-150.2,0.00014712,2]
[353833223,1740083464016,-150.2,0.00014712,2]
[353833224,1740083464025,-150.24,0.00014712,2]
[353833225,1740083464036,-1000.0,0.00014721,2]
[353833226,1740083464049,-1000.0,0.00014721,2]
[353833227,1740083464058,-500.0,0.00014767,2]
[353833228,1740083464068,-188.30426012,0.00014767,2]
[353833229,1740083464080,-500.0,0.00014767,2]
[353833230,1740083464090,-500.0,0.00014767,2]
[353833231,1740083464100,-1344.33,0.00014767,2]
[353833232,1740083464111,-690.08,0.00014767,2]
[353833233,1740083464123,-500.0,0.00014767,2]
[353833234,1740083464134,-841.22,0.00014767,2]
[353833235,1740083464144,-626.22,0.00014767,2]
[353833236,1740083464153,-299.16,0.00014767,2]
[353833237,1740083464164,-567.91,0.00014767,2]
[353833238,1740083464173,-500.0,0.00014767,2]
[353833239,1740083464183,-510.4,0.00014767,2]
[353833240,1740083464193,-969.2,0.00014767,2]
[353833241,1740083464203,-622.21,0.00014767,2]
[353833242,1740083464214,-541.46,0.00014767,2]
[353833243,1740083464224,-624.73,0.00014767,2]
[353833244,1740083464234,-681.71,0.00014767,2]
[353833245,1740083464244,-1160.78,0.00014767,2]
[353833246,1740083464254,-500.0,0.00014767,2]
[353833247,1740083464263,-565.57,0.00014767,2]
[353833248,1740083464273,-500.0,0.00014767,2]
[353833249,1740083464283,-409.6576848,0.00014767,2]
[353833250,1740083464293,-508.08,0.00014767,2]
[353833251,1740083464303,-973.34,0.00014767,2]
[353833252,1740083464313,-500.0,0.00014767,2]
[353833253,1740083464323,-500.0,0.00014767,2]
[353833254,1740083464334,-500.0,0.00014767,2]
[353833255,1740083464344,-735.52,0.00014767,2]
[353833256,1740083464354,-500.0,0.00014767,2]
[353833257,1740083464365,-578.73,0.00014767,2]
[353833258,1740083464376,-631.42,0.00014767,2]
[353833259,1740083464386,-500.0,0.00014767,2]
[353833260,1740083464396,-493.89,0.00014767,2]
[353833261,1740083464406,-630.95,0.00014767,2]
[353833262,1740083464416,-500.0,0.00014767,2]
[353833263,1740083464426,-500.0,0.00014767,2]
[353833264,1740083464436,-534.77,0.00014767,2]
[353833265,1740083464446,-500.0,0.00014767,2]
[353833266,1740083464456,-151.0,0.00014767,2]
[353833267,1740083464466,-547.69,0.00014767,2]
[353833268,1740083464477,-500.0,0.00014767,2]
[353833269,1740083464487,-1777.49,0.00014767,2]
[353833270,1740083464496,-500.0,0.00014767,2]
[353833271,1740083464507,-500.0,0.00014767,2]
[353833272,1740083464517,-500.0,0.00014767,2]
[353833273,1740083464527,-1398.84,0.00014767,2]
[353833274,1740083464537,-730.21,0.00014767,2]
[353833275,1740083464547,-796.15,0.00014767,2]
[353833276,1740083464556,-151.0,0.00014767,2]
[353833277,1740083464566,-908.79,0.00014767,2]
[353833278,1740083464576,-549.32,0.00014767,2]
[353833279,1740083464586,-14912.38,0.00014767,2]
[353833280,1740083464596,-192.8,0.00014767,2]
[353833281,1740083464606,-192.8,0.00014767,2]
[353833282,1740083464616,-2801.65,0.00014767,2]
[353833283,1740083464626,-500.0,0.00014767,2]
[353833284,1740083464636,-1082.16,0.00014767,2]
[353833285,1740083464647,-42237.27,0.00014767,2]
[353833286,1740083464656,-1101.55,0.00014767,2]
[353833287,1740083464666,-1138.49,0.00014767,2]
[353833288,1740083464676,-2990.03,0.00014767,2]
[353833289,1740083464686,-2277.37,0.00014767,2]
[353833290,1740083464695,-331.08,0.00014767,2]
[353833291,1740083464705,-6484.48,0.00014767,2]
[353833292,1740083464715,-1166.9,0.00014767,2]
[353833293,1740083464724,-297.48849811,0.00014767,2]
[353833294,1740083464734,-722.07,0.00014767,2]
[353833295,1740083464743,-514.06,0.00014767,2]
[353833296,1740083464752,-3817.32,0.00014767,2]
[353833297,1740083464762,-2046.35,0.00014767,2]
[353833298,1740083464771,-3368.27,0.00014767,2]
[353833299,1740083464780,-404.5563,0.00014767,2]
[353833300,1740083464789,-560.15,0.00014767,2]
[353833301,1740083464799,-998.57,0.00014767,2]
[353833302,1740083464808,-1492.11,0.00014767,2]
[353833303,1740083464818,-2086.24,0.00014767,2]
[353833304,1740083464829,-500.0,0.00014767,2]
[353833305,1740083464839,-1276.48,0.00014767,2]
[353833306,1740083464849,-350.22116527,0.00014767,2]
[353833307,1740083464860,-500.0,0.00014767,2]
[353833308,1740083464870,-500.0,0.00014767,2]
[353833309,1740083464880,-1532.03,0.00014767,2]
[353833310,1740083464891,-500.0,0.00014767,2]
[353833311,1740083464901,-523.05,0.00014767,2]
[353833312,1740083464910,-500.0,0.00014767,2]
[353833313,1740083464920,-548.69,0.00014767,2]
[353833314,1740083464931,-730.64,0.00014767,2]
[353833315,1740083464940,-5562.85,0.00014767,2]
[353833316,1740083464950,-1266.77,0.00014767,2]
[353833317,1740083464964,-1810.56,0.00014767,2]
[353833318,1740083464984,-6428.59,0.00014767,2]
[353833319,1740083465012,-599.39,0.00014767,2]
[353833320,1740083465043,-13589.0,0.00014767,2]
[353833321,1740083465063,-1627.47,0.00014767,2]
[353833322,1740083465091,-1125.78062592,0.00014832,2]
[353833323,1740083465127,-500.0,0.00014849,2]
[353833324,1740083465167,-500.0,0.00014849,2]
[353833325,1740083465177,-1344.33,0.00014849,2]
[353833326,1740083465187,-690.08,0.00014849,2]
[353833327,1740083465196,-500.0,0.00014849,2]
[353833328,1740083465206,-841.22,0.00014849,2]
[353833329,1740083465216,-626.22,0.00014849,2]
[353833330,1740083465226,-567.91,0.00014849,2]
[353833331,1740083465236,-500.0,0.00014849,2]
[353833332,1740083465347,-510.4,0.00014849,2]
[353833333,1740083465358,-969.2,0.00014849,2]
[353833334,1740083465368,-622.21,0.00014849,2]
[353833335,1740083465378,-541.46,0.00014849,2]
[353833336,1740083465388,-624.73,0.00014849,2]
[353833337,1740083465399,-681.71,0.00014849,2]
[353833338,1740083465409,-1160.78,0.00014849,2]
[353833339,1740083465421,-500.0,0.00014849,2]
[353833340,1740083465431,-565.57,0.00014849,2]
[353833341,1740083465441,-500.0,0.00014849,2]
[353833342,1740083465451,-508.08,0.00014849,2]
[353833343,1740083465460,-973.34,0.00014849,2]
[353833344,1740083465470,-500.0,0.00014849,2]
[353833345,1740083465480,-309.06183892,0.00014849,2]
[353833346,1740083465490,-500.0,0.00014849,2]
[353833347,1740083465500,-735.52,0.00014849,2]
[353833348,1740083465510,-604.4,0.00014849,2]
[353833349,1740083465520,-578.73,0.00014849,2]
[353833350,1740083465530,-631.42,0.00014849,2]
[353833351,1740083465540,-500.0,0.00014849,2]
[353833352,1740083465550,-630.95,0.00014849,2]
[353833353,1740083465560,-500.0,0.00014849,2]
[353833354,1740083465569,-347.76023138,0.00014849,2]
[353833355,1740083465583,-534.77,0.00014849,2]
[353833356,1740083465593,-500.0,0.00014849,2]
[353833357,1740083465602,-547.69,0.00014849,2]
[353833358,1740083465612,-500.0,0.00014849,2]
[353833359,1740083465622,-1777.49,0.00014849,2]
[353833360,1740083465632,-500.0,0.00014849,2]
[353833361,1740083465642,-559.24,0.00014849,2]
[353833362,1740083465652,-600.60684181,0.00014849,2]
[353833363,1740083465662,-1398.84,0.00014849,2]
[353833364,1740083465672,-730.21,0.00014849,2]
[353833365,1740083465681,-796.15,0.00014849,2]
[353833366,1740083465691,-908.79,0.00014849,2]
[353833367,1740083465700,-549.32,0.00014849,2]
[353833368,1740083465711,-14912.38,0.00014849,2]
[353833369,1740083465721,-2801.65,0.00014849,2]
[353833370,1740083465730,-500.0,0.00014849,2]
[353833371,1740083465740,-1082.16,0.00014849,2]
[353833372,1740083465750,-42237.27,0.00014849,2]
[353833373,1740083465759,-1101.55,0.00014849,2]
[353833374,1740083465769,-1138.49,0.00014849,2]
[353833375,1740083465778,-2990.03,0.00014849,2]
[353833376,1740083465787,-2277.37,0.00014849,2]
[353833377,1740083465797,-6484.48,0.00014849,2]
[353833378,1740083465806,-1166.9,0.00014849,2]
[353833379,1740083465816,-722.07,0.00014849,2]
[353833380,1740083465829,-514.06,0.00014849,2]
[353833381,1740083465839,-3817.32,0.00014849,2]
[353833382,1740083465849,-2046.35,0.00014849,2]
[353833383,1740083465860,-3368.27,0.00014849,2]
[353833384,1740083465869,-560.15,0.00014849,2]
[353833385,1740083465879,-998.57,0.00014849,2]
[353833386,1740083465889,-1492.11,0.00014849,2]
[353833387,1740083465899,-2086.24,0.00014849,2]
[353833388,1740083465908,-500.0,0.00014849,2]
[353833389,1740083465917,-1276.48,0.00014849,2]
[353833390,1740083465927,-500.0,0.00014849,2]
[353833391,1740083465937,-500.0,0.00014849,2]
[353833392,1740083465947,-1532.03,0.00014849,2]
[353833393,1740083465957,-500.0,0.00014849,2]
[353833394,1740083465966,-523.05,0.00014849,2]
[353833395,1740083465976,-500.0,0.00014849,2]
[353833396,1740083465986,-548.69,0.00014849,2]
[353833397,1740083465995,-730.64,0.00014849,2]
[353833398,1740083466006,-5562.85,0.00014849,2]
[353833399,1740083466016,-1266.77,0.00014849,2]
[353833400,1740083466027,-1810.56,0.00014849,2]
[353833401,1740083466041,-6428.59,0.00014849,2]
[353833402,1740083466052,-599.39,0.00014849,2]
[353833403,1740083466061,-13589.0,0.00014849,2]
[353833404,1740083466071,-1627.47,0.00014849,2]
[353833405,1740083466085,-2000.0,0.000149,2]
[353833406,1740083466096,-150.0,0.000149,2]
[353833407,1740083466106,-151.0,0.000149,2]
[353833408,1740083466116,-151.0,0.000149,2]
[353833409,1740083466125,-151.0,0.000149,2]
[353833410,1740083466136,-192.8,0.000149,2]
[353833411,1740083466145,-192.8,0.000149,2]
[353833412,1740083466155,-9561.72182818,0.00014931,5]
[353833413,1740083466165,-310.33331655,0.00014931,2]
[353833414,1740083466174,-500.0,0.00014931,2]
[353833415,1740083466184,-1344.33,0.00014931,2]
[353833416,1740083466195,-690.08,0.00014931,2]
[353833417,1740083466205,-500.0,0.00014931,2]
[353833418,1740083466215,-841.22,0.00014931,2]
[353833419,1740083466225,-626.22,0.00014931,2]
[353833420,1740083466236,-567.91,0.00014931,2]
[353833421,1740083466246,-500.0,0.00014931,2]
[353833422,1740083466255,-510.4,0.00014931,2]
[353833423,1740083466265,-969.2,0.00014931,2]
[353833424,1740083466274,-622.21,0.00014931,2]
[353833425,1740083466284,-541.46,0.00014931,2]
[353833426,1740083466293,-624.73,0.00014931,2]
[353833427,1740083466303,-681.71,0.00014931,2]
[353833428,1740083466312,-1160.78,0.00014931,2]
[353833429,1740083466322,-500.0,0.00014931,2]
[353833430,1740083466335,-565.57,0.00014931,2]
[353833431,1740083466345,-500.0,0.00014931,2]
[353833432,1740083466356,-508.08,0.00014931,2]
[353833433,1740083466365,-973.34,0.00014931,2]
[353833434,1740083466374,-500.0,0.00014931,2]
[353833435,1740083466384,-500.0,0.00014931,2]
[353833436,1740083466394,-735.52,0.00014931,2]
[353833437,1740083466404,-192.37814149,0.00014931,2]
[353833438,1740083466414,-578.73,0.00014931,2]
[353833439,1740083466424,-631.42,0.00014931,2]
[353833440,1740083466434,-630.95,0.00014931,2]
[353833441,1740083466443,-500.0,0.00014931,2]
[353833442,1740083466453,-534.77,0.00014931,2]
[353833443,1740083466464,-500.0,0.00014931,2]
[353833444,1740083466474,-547.69,0.00014931,2]
[353833445,1740083466484,-500.0,0.00014931,2]
[353833446,1740083466495,-1777.49,0.00014931,2]
[353833447,1740083466505,-441.83645634,0.00014931,2]
[353833448,1740083466515,-1398.84,0.00014931,2]
[353833449,1740083466524,-730.21,0.00014931,2]
[353833450,1740083466535,-796.15,0.00014931,2]
[353833451,1740083466544,-908.79,0.00014931,2]
[353833452,1740083466554,-549.32,0.00014931,2]
[353833453,1740083466564,-14912.38,0.00014931,2]
[353833454,1740083466578,-2801.65,0.00014931,2]
[353833455,1740083466588,-500.0,0.00014931,2]
[353833456,1740083466598,-1082.16,0.00014931,2]
[353833457,1740083466608,-42237.27,0.00014931,2]
[353833458,1740083466618,-1101.55,0.00014931,2]
[353833459,1740083466628,-1138.49,0.00014931,2]
[353833460,1740083466639,-2990.03,0.00014931,2]
[353833461,1740083466649,-2277.37,0.00014931,2]
[353833462,1740083466659,-6484.48,0.00014931,2]
[353833463,1740083466669,-1166.9,0.00014931,2]
[353833464,1740083466679,-722.07,0.00014931,2]
[353833465,1740083466689,-514.06,0.00014931,2]
[353833466,1740083466699,-3817.32,0.00014931,2]
[353833467,1740083466708,-2046.35,0.00014931,2]
[353833468,1740083466718,-3368.27,0.00014931,2]
[353833469,1740083466727,-560.15,0.00014931,2]
[353833470,1740083466738,-998.57,0.00014931,2]
[353833471,1740083466747,-1492.11,0.00014931,2]
[353833472,1740083466757,-2086.24,0.00014931,2]
[353833473,1740083466767,-500.0,0.00014931,2]
[353833474,1740083466777,-1276.48,0.00014931,2]
[353833475,1740083466786,-500.0,0.00014931,2]
[353833476,1740083466796,-500.0,0.00014931,2]
[353833477,1740083466805,-1532.03,0.00014931,2]
[353833478,1740083466814,-500.0,0.00014931,2]
[353833479,1740083466826,-523.05,0.00014931,2]
[353833480,1740083466835,-500.0,0.00014931,2]
[353833481,1740083466845,-151.0,0.00014931,2]
[353833482,1740083466855,-548.69,0.00014931,2]
[353833483,1740083466865,-730.64,0.00014931,2]
[353833484,1740083466875,-5562.85,0.00014931,2]
[353833485,1740083466884,-1266.77,0.00014931,2]
[353833486,1740083466893,-1810.56,0.00014931,2]
[353833487,1740083466903,-6428.59,0.00014931,2]
[353833488,1740083466913,-599.39,0.00014931,2]
[353833489,1740083466922,-13589.0,0.00014931,2]
[353833490,1740083466932,-1627.47,0.00014931,2]
[353833491,1740083466942,-611.39913422,0.00014977,2]
[353833492,1740083466950,-989.14731043,0.00014986,2]
[353833493,1740083466959,-699.0,0.00014986,2]
[353833494,1740083466968,-500.0,0.00014986,2]
[353833495,1740083466978,-560.59172264,0.00014986,2]
[353833496,1740083466988,-500.0,0.00014986,2]
[353833497,1740083466998,-249.67063902,0.00014986,2]
[353833498,1740083467007,-2002.1901053,0.00014999,2]
[353833499,1740083467017,-4522.22991648,0.00015,2]
[353833500,1740083467026,-845.977203,0.00015,2]
[353833501,1740083467039,-17003.0,0.00015,2]
[353833502,1740083467133,-32575.0,0.00015,2]
[353833503,1740083467143,-500.0,0.00015,2]
[353833504,1740083467153,-500.0,0.00015,2]
[353833505,1740083467162,-500.0,0.00015,2]
[353833506,1740083467172,-500.0,0.00015,2]
[353833507,1740083467181,-500.0,0.00015,2]
[353833508,1740083467191,-500.0,0.00015,2]
[353833509,1740083467200,-500.0,0.00015,2]
[353833510,1740083467210,-500.0,0.00015,2]
[353833511,1740083467219,-500.0,0.00015,2]
[353833512,1740083467229,-501.17448677,0.00015,2]
[353833513,1740083467238,-500.0,0.00015,2]
[353833514,1740083467248,-500.0,0.00015,2]
[353833515,1740083467257,-500.0,0.00015,2]
[353833516,1740083467267,-500.0,0.00015,2]
[353833517,1740083467277,-500.0,0.00015,2]
[353833518,1740083467286,-500.0,0.00015,2]
[353833519,1740083467296,-500.0,0.00015,2]
[353833520,1740083467305,-500.0,0.00015,2]
[353833521,1740083467315,-266.0,0.00015,2]
[353833522,1740083467325,-1000.0,0.00015,15]
[353833523,1740083467334,-700.0,0.00015,2]
[353833524,1740083467343,-25544.41937664,0.00015,2]
[353833525,1740083467354,-500.0,0.00015013,2]
[353833526,1740083467363,-1344.33,0.00015013,2]
[353833527,1740083467374,-690.08,0.00015013,2]
[353833528,1740083467383,-500.0,0.00015013,2]
[353833529,1740083467393,-841.22,0.00015013,2]
[353833530,1740083467402,-626.22,0.00015013,2]
[353833531,1740083467412,-567.91,0.00015013,2]
[353833532,1740083467421,-510.4,0.00015013,2]
[353833533,1740083467431,-969.2,0.00015013,2]
[353833534,1740083467440,-622.21,0.00015013,2]
[353833535,1740083467450,-541.46,0.00015013,2]
[353833536,1740083467459,-624.73,0.00015013,2]
[353833537,1740083467469,-681.71,0.00015013,2]
[353833538,1740083467479,-1160.78,0.00015013,2]
[353833539,1740083467491,-500.0,0.00015013,2]
[353833540,1740083467501,-565.57,0.00015013,2]
[353833541,1740083467510,-215.98,0.00015013,2]
[353833542,1740083467520,-508.08,0.00015013,2]
[353833543,1740083467529,-973.34,0.00015013,2]
[353833544,1740083467538,-500.0,0.00015013,2]
[353833545,1740083467547,-735.52,0.00015013,2]
[353833546,1740083467558,-578.73,0.00015013,2]
[353833547,1740083467567,-631.42,0.00015013,2]
[353833548,1740083467579,-630.95,0.00015013,2]
[353833549,1740083467588,-500.0,0.00015013,2]
[353833550,1740083467598,-534.77,0.00015013,2]
[353833551,1740083467607,-500.0,0.00015013,2]
[353833552,1740083467616,-547.69,0.00015013,2]
[353833553,1740083467626,-1777.49,0.00015013,2]
[353833554,1740083467636,-1398.84,0.00015013,2]
[353833555,1740083467646,-730.21,0.00015013,2]
[353833556,1740083467656,-796.15,0.00015013,2]
[353833557,1740083467665,-908.79,0.00015013,2]
[353833558,1740083467675,-549.32,0.00015013,2]
[353833559,1740083467683,-14912.38,0.00015013,2]
[353833560,1740083467694,-2801.65,0.00015013,2]
[353833561,1740083467703,-1082.16,0.00015013,2]
[353833562,1740083467712,-42237.27,0.00015013,2]
[353833563,1740083467722,-1101.55,0.00015013,2]
[353833564,1740083467731,-1138.49,0.00015013,2]
[353833565,1740083467740,-2990.03,0.00015013,2]
[353833566,1740083467750,-2277.37,0.00015013,2]
[353833567,1740083467759,-6484.48,0.00015013,2]
[353833568,1740083467769,-1166.9,0.00015013,2]
[353833569,1740083467778,-722.07,0.00015013,2]
[353833570,1740083467788,-514.06,0.00015013,2]
[353833571,1740083467797,-3817.32,0.00015013,2]
[353833572,1740083467806,-2046.35,0.00015013,2]
[353833573,1740083467816,-3368.27,0.00015013,2]
[353833574,1740083467827,-560.15,0.00015013,2]
[353833575,1740083467836,-998.57,0.00015013,2]
[353833576,1740083467846,-1492.11,0.00015013,2]
[353833577,1740083467853,-2086.24,0.00015013,2]